[Event "European Senior Team Chess Championship"]
[Site "Chess.com"]
[Date "2023.07.18"]
[Round "7"]
[White "Higgie, Charles L"]
[Black "Stadnicki, Andrzej"]
[Result "1-0"]
[ECO "D55"]
[WhiteElo "1924"]
[BlackElo "1648"]
[Annotator "Kemenade"]
[PlyCount "36"]
[EventDate "2023.??.??"]
[TimeControl "5400+30"]

{[%evp 0,35,19,31,14,-14,-11,-3,4,-35,12,17,21,0,30,39,38,8,103,100,103,45,136,126,127,102,104,61,105,140,207,72,205,166,240,124,149,217]} 1. d4 {[%emt 0:00:02]} Nf6 {[%emt 0:00:21]} 2. c4 {[%emt 0:00:07]} e6 {[%emt 0:00:17]} 3. Nc3 {[%emt 0:00:07]} d5 {[%emt 0:00:43]} 4. Bg5 {[%emt 0:00:07]} Be7 {[%emt 0:00:14]} 5. e3 {[%emt 0:00:08]} O-O {[%emt 0:01:10]} 6. Qc2 {[%emt 0:00:14]} c6 {[%emt 0:11:22]} 7. Nf3 {[%emt 0:00:34]} h6 {[%emt 0:01:07]} 8. h4 {[%emt 0:00:32] 75% Wh} (8. Bh4 {,main, 66% Wh}) 8... Nh7 {[%emt 0:08:41]} (8... hxg5 {No games in database} 9. hxg5 $18 g6 (9... Ne4 10. Nxe4 dxe4 11. Qxe4 Qa5+ 12. Kd1 Qf5 (12... f5 13. Qh4 Kf7 14. Qh5+ g6 15. Qh7+ Ke8 16. Ne5 $18 {KD3.2}) 13. Qh4 f6 14. Qh5 {Cloud Engines} Rd8 15. e4 Qxe4 16. g6 Rxd4+ 17. Nxd4 Qxd4+ 18. Kc2 Qxf2+ 19. Be2 $18 {KD3.2}) 10. gxf6 Bxf6 11. O-O-O $18 {KD3.2}) 9. Bxe7 {[%emt 0:11:05]} Qxe7 {[%emt 0:00:10]} 10. O-O-O {[%emt 0:02:01]} (10. g4 $18 {Cloud Engines, 2-0}) (10. cxd5 exd5 $11 {Dragic-Haddock, AUS ch reserves, Melbourne 2002,1-0}) 10... f5 {[%emt 0:04:58]} (10... Nf6 $14) 11. Ne5 $18 {[%emt 0:03:11]} (11. g4 $18) 11... Re8 {[%emt 0:04:51]} 12. Be2 {[%emt 0:04:58]} (12. g4 {KD3.2}) 12... Nf6 {[%emt 0:07:03]} 13. g4 {[%emt 0:17:19]} Ne4 {[%emt 0:04:37]} 14. Nxe4 {[%emt 0:01:22]} fxe4 {[%emt 0:00:19]} 15. f3 {[%emt 0:01:06]} (15. g5 $18 {KD3.2}) 15... exf3 {[%emt 0:00:39]} (15... Nd7 16. g5) 16. Bd3 $1 {[%emt 0:03:27]} g5 {[%emt 0:00:42]} 17. Rdf1 {[%emt 0:05:15]} (17. hxg5 Qxg5 18. Qf2 Nd7 19. Rh5 Qg7 20. g5 {KD3.2}) 17... Nd7 {[%emt 0:00:15]} 18. Ng6 {[%emt 0:02:31]} e5 (18... Qf6 19. hxg5 Qxg5 20. Qf2 $18 e5 21. Qxf3 Nf6 22. dxe5 Bxg4 23. Qxf6 Qxf6 24. exf6 Rxe3 25. Kd2 $18 {KD3.2}) 1-0

[Event "European Senior Team Chess Championship"]
[Site "Chess.com"]
[Date "2023.07.19"]
[Round "8"]
[White "Higgie, Charles L"]
[Black "Jorgensen, Jorgen"]
[Result "0-1"]
[ECO "B05"]
[WhiteElo "1924"]
[BlackElo "2107"]
[Annotator "Kemenade"]
[PlyCount "84"]
[EventDate "2023.??.??"]
[TimeControl "5400+30"]

{[%evp 0,84,19,31,70,65,65,70,36,43,49,19,80,51,46,46,60,59,55,52,64,47,47,60,90,67,88,99,121,97,86,60,64,81,83,91,94,95,163,91,145,80,271,132,256,256,256,278,359,349,349,349,349,349,327,161,161,161,161,161,161,161,161,161,238,171,247,171,74,74,94,87,87,-16,-16,0,0,-255,-105,-118,-74,-231,-231,-528,-541,-541,-637]} 1. e4 {[%emt 0:00:30]} Nf6 {[%emt 0:00:14] THis is not that common at the highest levels as Bl has to manage with a space disadvantage. Though there are regulars such as Rapport & Bortnyk, and Carslsen has used it on occasions. Locally Howard Williams has co-authored the Batsford book on the opening and continues to practice it.} 2. e5 {[%emt 0:00:06]} Nd5 {[%emt 0:00:05]} 3. d4 {[%emt 0:00:07]} d6 {[%emt 0:00:07]} 4. Nf3 {[%emt 0:00:05]} Bg4 {[%emt 0:00:24]} 5. Be2 {[%emt 0:00:14]} e6 {[%emt 0:00:07]} 6. O-O {[%emt 0:00:23]} Be7 {[%emt 0:00:10]} 7. c4 {[%emt 0:00:09]} Nb6 {[%emt 0:00:07]} 8. Nc3 {[%emt 0:00:07]} O-O {[%emt 0:00:39]} 9. Be3 {[%emt 0:00:48] main} (9. b3 $5) 9... d5 {[%emt 0:01:52]} (9... N8d7 10. b3 {Brinck Claussen-Jorgensen, Norresundby 2000,1/2-1/2}) (9... Bxf3 10. Bxf3 d5 11. b3 Bg5 12. Bxg5 Qxg5 13. cxd5 exd5 14. Nxd5 Nxd5 15. Bxd5 c6 16. f4 Qh4 17. Bc4 $18 {Brinck Claussen-Jorgensen, Aalborg 1993,1/2-1/2}) 10. c5 {[%emt 0:00:42]} Bxf3 {[%emt 0:00:29]} 11. gxf3 {[%emt 0:01:18] main} (11. Bxf3 {also played, but the text scores better}) 11... Nc8 {[%emt 0:00:41]} 12. b4 {[%emt 0:00:35] 68% for Wh} (12. f4 {main, 68% for Wh}) (12. Kh1 {Engines, 72% for Wh}) 12... b6 {[%emt 0:00:58] 3 Wh wins, 1 draw} (12... Bh4) (12... Nc6 {main lines}) 13. f4 {[%emt 0:02:27] 5-0} c6 {[%emt 0:05:19]} 14. Bd3 {[%emt 0:08:04]} (14. a4 a6 15. Bd3 $16 {Engines}) 14... g6 $146 {[%emt 0:00:43]} (14... f5 15. Kh1 {4.5-0.5}) 15. Ne2 {[%emt 0:01:31]} (15. Qf3 $16 {KD3.2}) (15. a3 a5 16. Qc2 $16 {SF14}) 15... a5 {[%emt 0:03:02]} 16. a3 {[%emt 0:01:25]} f5 {[%emt 0:06:32]} (16... Na6 $16 {both Engines}) 17. Bd2 {[%emt 0:01:20] Wh controls more space on both sides of the board and Bl is struggling to find some counterplay.} (17. bxa5 Rxa5 18. Qc2 $16 {KD3.2}) (17. Qc2 Qc7 18. Rfb1 $16 {SF14}) 17... Qd7 {[%emt 0:21:28]} (17... a4 {both Engines}) 18. Qc2 {[%emt 0:02:12]} Qb7 {[%emt 0:03:48]} 19. Rfc1 {[%emt 0:03:25]} (19. bxa5 bxa5 20. Rab1 $18 {both Engines}) 19... Bd8 {[%emt 0:06:15]} 20. b5 {[%emt 0:05:56]} (20. bxa5 $18 {both Engines}) 20... bxc5 $2 {[%emt 0:01:38]} (20... cxb5 21. Bxb5 Na7 (21... bxc5 22. Rab1 $16 {SF14}) 22. Rab1 $16 {KD3.2}) 21. Qxc5 {[%emt 0:00:31]} (21. dxc5 $1 $18 {both Engines; the N gets to d4}) 21... Be7 {[%emt 0:06:55]} (21... Na7 22. a4 Bb6 23. Qd6 Kf7 24. Rab1 $16 {KD3.2}) 22. bxc6 {[%emt 0:02:39]} Qc7 {[%emt 0:00:17]} 23. Qb5 $18 {[%emt 0:02:21] The Bl Ns are more of a hindrance than an assett} Ra6 {[%emt 0:17:07]} (23... Ra7 {KD3.2}) 24. Rab1 {[%emt 0:02:47]} (24. Qb7 $1 {both Engines, Rudy & Lee- targets the passive Ns} Ra7 25. Qxc7 Rxc7 26. Bxa5 Rxc6 27. Rcb1 $1 Nd7 (27... Na7 28. Rb7) 28. Rb7 Ncb6 29. Bb5 $18 {KD3.2}) 24... Rb6 {[%emt 0:00:38]} 25. Qxa5 {[%emt 0:00:31] SF14} (25. Bxa5 {KD3.2} Rxb5 26. Bxc7 Rxb1 27. Rxb1 Nxc6 28. Bb5 N8a7 29. Bxc6 Nxc6 30. Rb6 Na7 (30... Nd8 31. a4 $18) 31. Rxe6 Bxa3 32. Bd6 Bxd6 33. Rxd6 Nb5 34. Rxd5 $18 {KD3.2}) 25... Nxc6 {[%emt 0:00:36]} 26. Rxb6 {[%emt 0:06:50]} Nxb6 {[%emt 0:04:57]} 27. Qc3 {[%emt 0:06:30] Wh is having the usual problem with a clearly winning position- there are so many good moves to choose from, and deciding which is the most effective} (27. Qb5 $1 {both Engines} Nc4 (27... Rc8 28. Ba5 Bd8 29. Qa6 Qb8 (29... Rb8 30. Bb5) 30. Bxb6 Bxb6 31. Rb1 $18) 28. Bxc4 dxc4 29. Qxc4 $18 Rc8 30. Qxe6+ Kh8 31. d5 $18 {KD3.2}) 27... Rc8 {[%emt 0:11:11]} 28. Bb5 {[%emt 0:00:37]} (28. Ba6 $1 $18 {both Engines}) 28... Nc4 {[%emt 0:00:18]} 29. Bxc4 {[%emt 0:00:12]} dxc4 {[%emt 0:00:05]} 30. Qxc4 $18 {[%emt 0:00:13]} Qd7 {[%emt 0:00:19]} 31. Qa6 {[%emt 0:01:49]} (31. a4 Bd8 32. Qb5 $18 {both Engines}) 31... Kf7 {[%emt 0:02:03]} (31... Rc7 {best} 32. a4 $18 {both Engines}) 32. d5 $1 $18 {[%emt 0:02:55] the correct break, but unfortunately Wh misses a nuance} exd5 {[%emt 0:01:03]} 33. Nd4 {[%emt 0:00:28]} (33. Bb4 $1 {both Engines-removes Bl's target in the game continuation} d4 34. Nxd4 $18 {both Engines} Nxd4 35. Qxc8 Qxc8 36. Rxc8 $18) 33... Nxd4 {[%emt 0:00:15]} 34. Rxc8 {[%emt 0:04:51]} Nf3+ {[%emt 0:00:08]} 35. Kg2 {[%emt 0:00:15]} Nxd2 {[%emt 0:00:08] Wh is still winning, but the line is difficult to find especially after the surprise of losing the B} 36. Rh8 {[%emt 0:00:13]} (36. Rc6 $1 Kg7 (36... Kf8 $5 {Lee & Rudy} 37. e6 Qe8 38. Rc8 Bd8 39. Qd6+ $18) 37. e6 {both Engines} Qd8 38. Qb7 Nc4 39. Rc7 Kf6 40. Rd7 Qe8 41. a4 Bc5 42. Rxd5 Be7 43. Rd7 h5 44. Qc6 $18 {KD3.2}) 36... Kg7 $11 {[%emt 0:01:42]} 37. Qa8 {[%emt 0:00:34]} (37. Rb8 d4 38. f3 $11 {both Engines}) 37... Kh6 {[%emt 0:01:45]} 38. Rb8 {[%emt 0:05:18]} (38. Qg8 Bxa3 39. Qd8 Qxd8 40. Rxd8 Kg7 41. Rxd5 Ne4 42. Rd7+ $11 {KD3.2}) (38. a4 d4 39. f3 $11 {both Engines} Nc4 40. Qg8 Ne3+ {other moves lose} 41. Kg1 Bc5 42. Qd8 Qxd8 43. Rxd8 Kg7 44. Kf2 Kf7 45. Ke2 $11 {KD3.2}) 38... d4 $19 {[%emt 0:00:28]} (38... Qc7 $1 $19 {both Engines} 39. Rc8 Qb6 40. Qxd5 Qa6 41. Qxd2 Qxc8 $19 {KD3.2}) 39. Rb2 {[%emt 0:03:43]} Nc4 {[%emt 0:01:20]} (39... Ne4 $1 $19 {KD3.2}) 40. Rb3 {[%emt 0:00:54]} (40. Qb7 $1 {controls the vital long diagonal} Qe6 41. Rb3 g5 42. fxg5+ Kxg5 43. Rd3 Nxe5 44. Rxd4 Ng6 45. Kf1 Bc5 (45... Bxa3 46. Qxh7 $11) 46. Rd3 Qc4 47. Qg2+ Kf6 48. Qd5 Qc1+ 49. Rd1 Qxa3 $15 {KD3.2}) 40... d3 $19 {[%emt 0:00:00]} 41. Qg8 {[%emt 0:00:00]} (41. Qf3 {both Engines} d2 42. Rd3 Ne3+ $1 43. Qxe3 d1=Q $19 {KD3,2}) 41... Nd2 {[%emt 0:00:00]} (41... Qc6+ 42. Kg1 Ne3 {mating soon, both Engines ( giving up Q delays the process)}) 42. Rb6 {[%emt 0:00:00]} Bc5 {[%emt 0:00:00] 0-} (42... Bc5 43. Rd6 Bxd6 44. Qd5 $19 {is the only way to delay the mate. Wh was highly unfortunate, the final result against the run of play in most of the game.}) 0-1

[Event "European Senior Team Chess Championship"]
[Site "Chess.com"]
[Date "2023.07.19"]
[Round "8"]
[White "Mikkelsen, Peter Jorgen Dam"]
[Black "Van Kemenade, Rudy"]
[Result "1-0"]
[ECO "A05"]
[WhiteElo "2116"]
[BlackElo "1934"]
[Annotator "Kemenade"]
[PlyCount "113"]
[EventDate "2023.??.??"]
[TimeControl "5400+30"]

{[%evp 0,113,29,21,29,-23,14,14,24,4,1,16,2,2,2,-29,-26,-31,-6,-27,5,11,80,83,96,48,44,42,43,37,35,-5,-5,-39,-2,-40,-5,-36,-31,-40,-37,-42,-46,-54,-52,-60,-52,-56,-60,-66,-57,-65,-59,-65,-59,-60,-63,-67,-58,-62,-48,-46,-47,-61,-45,-54,27,35,34,35,18,-6,21,24,5,0,21,42,90,88,88,88,100,104,201,224,146,84,106,107,116,105,122,103,124,137,295,292,292,277,350,375,392,465,524,468,480,406,492,621,621,611,29997,29998,29999,-30000]} 1. Nf3 {[%emt 0:00:05]} Nf6 {[%emt 0:00:13]} 2. g3 {[%emt 0:00:07]} g6 {[%emt 0:00:04]} 3. Bg2 {[%emt 0:00:11]} Bg7 {[%emt 0:00:08]} 4. d3 {[%emt 0:00:07]} d6 {[%emt 0:00:06]} 5. O-O {[%emt 0:00:38]} O-O {[%emt 0:00:06]} 6. e4 {[%emt 0:00:21]} e5 {[%emt 0:00:14]} (6... c5 {main}) 7. c3 {[%emt 0:01:02]} Nc6 {[%emt 0:00:06]} 8. Nbd2 {[%emt 0:01:45]} h6 {[%emt 0:00:53]} (8... Nh5 {main, 49% for Wh} 9. Nc4 Be6 {3 wins each}) 9. Re1 {[%emt 0:02:00] main, though Wh was unhappy with this move in pm analysis} Ne8 {[%emt 0:00:36]} (9... Nh7 {3-2-4}) 10. Nc4 {[%emt 0:10:21]} (10. b4 a6 11. a4 f5 12. Nh4 Rf6 13. exf5 g5 14. Bd5+ Kh7 15. Nhf3 Bxf5 16. Ne4 $16 {Topic-Zupancic, SLO op, Ljubljana 2014,0-1}) 10... f5 {[%emt 0:01:28]} (10... Ne7 11. d4 exd4 12. cxd4 d5 13. exd5 Nxd5 14. Nfe5 $14 {Van der Weide-Webbink, NED ch tm 1994,1-0}) 11. exf5 {[%emt 0:00:29]} gxf5 {[%emt 0:00:55]} 12. Qe2 {[%emt 0:05:20]} (12. d4 e4 13. Nh4 Ne7 14. Bf4 $16 {KD3.2}) 12... Ne7 {[%emt 0:00:39]} (12... e4 13. dxe4 fxe4 14. Nh4 d5 15. Ne3 Ne5 16. Nxd5 Qxd5 17. Bxe4 Qd8 18. Bf4 Rxf4 19. gxf4 Qxh4 20. fxe5 c6 21. Qc4+ Kh8 22. Qf7 Qg5+ 23. Kh1 Bg4 24. Qxb7 $16 {KD3.2}) 13. d4 {[%emt 0:02:53]} (13. Nh4 $16 {Rudy & KD3.2}) 13... e4 {[%emt 0:00:17]} 14. Nfd2 {[%emt 0:00:29]} (14. Nh4 b5 15. Ne3 d5 $14 {KD3.2} 16. Qxb5 c6 17. Qe2 Bf6 $15) 14... Ng6 $15 {[%emt 0:00:43]} 15. f4 {[%emt 0:02:06]} Nf6 $17 {[%emt 0:02:19]} 16. a4 {[%emt 0:02:49]} h5 {[%emt 0:00:47]} 17. h4 {[%emt 0:01:03]} Ng4 $15 {[%emt 0:00:23] [draw?]} 18. Nf1 {[%emt 0:01:30]} Be6 {[%emt 0:01:04]} 19. Nce3 {[%emt 0:00:34]} d5 {[%emt 0:00:17]} 20. Nxg4 {[%emt 0:03:31]} fxg4 {[%emt 0:00:24]} (20... hxg4 {KD3.2}) 21. Be3 {[%emt 0:02:13]} (21. b4 c6 $15 {KD3.2}) 21... Ne7 {[%emt 0:00:14]} 22. Bf2 {[%emt 0:02:01]} Nf5 {[%emt 0:00:27]} (22... a5 $15) (22... c6 $15) 23. Ne3 {[%emt 0:00:36]} Qd7 $11 {[%emt 0:00:36]} (23... Nd6 24. b4 c6 25. Bf1 a6 $15 {KD3.2}) 24. Red1 {[%emt 0:04:17]} Rfd8 {[%emt 0:01:42]} 25. b3 {[%emt 0:04:21]} Rac8 {[%emt 0:03:09]} 26. Nxf5 {[%emt 0:02:35]} Bxf5 {[%emt 0:00:49]} 27. Be3 $11 {[%emt 0:01:23]} Qe7 {[%emt 0:03:11]} 28. a5 {[%emt 0:00:58]} a6 {[%emt 0:00:17]} (28... c6) 29. Rac1 {[%emt 0:01:11]} Qa3 {[%emt 0:00:48]} (29... c6) 30. b4 {[%emt 0:03:58]} Qa4 {[%emt 0:00:14]} 31. Bf1 {[%emt 0:00:16]} Bd7 {[%emt 0:01:25]} (31... Qd7 $11 {considered in pm analysis} 32. b5 Qxb5 33. Qxb5 axb5 34. Bxb5 Ra8 35. Ra1 c6 (35... Ra7 36. a6 bxa6 37. Ra5 Rd6 38. Rda1 Rb6 $11 {KD3.2}) 36. Be2 Kf7 37. Kf2 Bf6 $11 {KD3.2}) (31... Be6 $11) (31... Bf8 $11) 32. Qb2 {[%emt 0:00:36]} Qc6 {[%emt 0:00:25]} (32... Be6 33. Ra1 Qd7 $11) 33. c4 $16 {[%emt 0:01:39]} Be6 {[%emt 0:00:40]} 34. b5 {[%emt 0:00:56]} (34. cxd5 Qxd5 35. Rc5 Qb3 36. Qxb3 Bxb3 37. Rdc1 Bxd4 38. Bxd4 Rxd4 39. Rxh5 $16 (39. Rxc7 Rxc7 40. Rxc7 Rd1 41. Kf2 e3+ 42. Ke2 Rb1 43. Bg2 Rb2+ 44. Kf1 Ba4 $11 {KD3.2})) 34... axb5 {[%emt 0:00:54]} (34... Qd7 35. bxa6 bxa6 36. f5 Bf7 37. Qf2 Rf8 38. f6 Bg6 39. Bg5 Rce8 40. Qe3 Bxf6 41. cxd5 $16 {KD3.2}) 35. cxb5 {[%emt 0:00:07]} Qd7 {[%emt 0:00:36]} 36. Qa3 {[%emt 0:07:21]} (36. Rc3 Bf8 37. a6 Bd6 38. Rdc1 Ra8 39. b6 cxb6 40. Bb5 Qe7 41. axb7 Qxb7 42. Bc6 $18 {KD3.2}) 36... Bf8 {[%emt 0:02:10]} 37. Qa1 {[%emt 0:04:11]} (37. Qb3) 37... c6 $2 {[%emt 0:01:26]} (37... Ra8 38. a6 Ra7 39. Rc2 $16 {KD3.2}) 38. bxc6 {[%emt 0:02:43]} Rxc6 $2 {[%emt 0:00:07]} (38... bxc6 39. a6 Rb8 40. Rc3 Bd6 41. Rb1 $18) 39. Bb5 {[%emt 0:06:59]} Rxc1 {[%emt 0:00:12]} 40. Bxd7 {[%emt 0:00:00]} Rxd1+ {[%emt 0:00:00]} (40... Rxa1 41. Bxe6+ {missed earlier}) 41. Qxd1 {[%emt 0:00:00]} Bxd7 $18 {[%emt 0:00:00]} 42. Qb3 {[%emt 0:00:00]} Bc6 {[%emt 0:00:00]} 43. Bf2 {[%emt 0:00:00]} (43. Qb6 Ra8 44. f5 $18) 43... Ra8 {[%emt 0:00:00]} 44. Be1 {[%emt 0:00:00]} (44. Qb6) 44... Bg7 {[%emt 0:00:00]} 45. Bc3 {[%emt 0:00:00]} Ra6 {[%emt 0:00:00]} 46. Qb2 {[%emt 0:00:00]} (46. Kf2) 46... Kf7 {[%emt 0:00:00]} 47. f5 {[%emt 0:00:00]} (47. Qa3 Ke6 48. f5+ Kxf5 49. Qe7 $18 {KD3.2}) 47... Bh6 {[%emt 0:00:00]} (47... e3 48. Qa3 e2 49. Kf2 Bb5 50. Qb4 Bc4 51. Qxb7+ Kg8 52. Qc8+ Kh7 53. Qe8 $18 {KD3.2}) 48. Qa3 {[%emt 0:00:00]} Bf8 {[%emt 0:00:00]} 49. Qc1 {[%emt 0:00:00]} (49. Bb4 Bh6 50. Qc3) 49... Bb5 {[%emt 0:00:00]} 50. Qg5 {[%emt 0:00:00]} Be2 {[%emt 0:00:00]} 51. Qxh5+ {[%emt 0:00:00]} Kg8 {[%emt 0:00:00]} 52. Qg5+ {[%emt 0:00:00]} (52. Qe8) 52... Kf7 {[%emt 0:00:00]} 53. Qd8 {[%emt 0:00:00]} Bd6 {[%emt 0:00:00]} (53... Bc4) 54. Qd7+ {[%emt 0:00:00]} Kf8 {[%emt 0:00:00]} 55. f6 {[%emt 0:02:28]} Bxg3 {[%emt 0:00:00]} 56. Qg7+ {[%emt 0:01:06]} Ke8 {[%emt 0:00:00]} 57. Qe7# {[%emt 0:00:09]} 1-0

[Event "European Senior Team Chess Championship"]
[Site "Chess.com"]
[Date "2023.07.20"]
[Round "9"]
[White "Schutz, Ingemar"]
[Black "Higgie, Charles L"]
[Result "1-0"]
[ECO "B89"]
[WhiteElo "2187"]
[BlackElo "1924"]
[Annotator "Kemenade"]
[PlyCount "57"]
[EventDate "2023.??.??"]
[TimeControl "5400+30"]

1. e4 {[%emt 0:00:04]} c5 {[%emt 0:00:04]} 2. Nf3 {[%emt 0:00:12]} d6 {[%emt 0:00:01]} 3. d4 {[%emt 0:00:12]} cxd4 {[%emt 0:00:02]} 4. Nxd4 {[%emt 0:00:10]} Nf6 {[%emt 0:00:06]} 5. Nc3 {[%emt 0:00:10]} Nc6 {[%emt 0:00:02]} 6. Bc4 {[%emt 0:00:25]} e6 {[%emt 0:00:08]} 7. Be3 {[%emt 0:00:25]} Be7 {[%emt 0:00:14]} 8. Qe2 {[%emt 0:02:35]} a6 {[%emt 0:05:36]} 9. O-O-O {[%emt 0:01:41]} Bd7 {[%emt 0:00:41]} 10. Bb3 {[%emt 0:01:57]} Qa5 {[%emt 0:07:20]} 11. f3 {[%emt 0:31:54]} (11. f4 {4-1-4}) 11... O-O {[%emt 0:12:19]} (11... b5 {4-1-7}) 12. g4 $14 {[%emt 0:01:17] 3-0} Nxd4 $146 {[%emt 0:05:40] Cloud Engines} 13. Bxd4 {[%emt 0:07:49]} (13. Rxd4 $14 {Cloud Engines}) 13... Rfc8 {[%emt 0:04:37]} (13... b5 {KomodoDragon3.2} 14. e5 dxe5 15. Qxe5 Bc6 16. Rhf1 Rad8 17. a3 Rd7 $11) 14. h4 $16 {[%emt 0:15:14]} e5 {[%emt 0:02:18]} (14... b5 15. e5 dxe5 16. Qxe5 Ne8 17. Qe3 b4 18. Nd5 $16 {KD3.2}) 15. Be3 $18 {[%emt 0:00:45]} Rxc3 {[%emt 0:01:29] best try} 16. Bd2 {[%emt 0:02:29]} Bb5 {[%emt 0:06:23]} 17. Qe1 {[%emt 0:03:56]} Rxc2+ {[%emt 0:03:02]} 18. Kxc2 {[%emt 0:01:47]} Qd8 {[%emt 0:03:48]} 19. Kb1 {[%emt 0:01:16]} Nd7 {[%emt 0:01:22]} 20. Be3 {[%emt 0:01:12]} Rc8 {[%emt 0:01:16]} 21. g5 {[%emt 0:00:35]} Nc5 {[%emt 0:01:07]} 22. Bxc5 {[%emt 0:01:51]} Rxc5 {[%emt 0:00:15]} 23. Rc1 {[%emt 0:01:26]} (23. Bd5) 23... b6 {[%emt 0:01:13]} 24. Qd2 {[%emt 0:00:44]} Bc6 {[%emt 0:02:22]} 25. Rhg1 {[%emt 0:05:11]} (25. Rhd1) 25... Kf8 {[%emt 0:01:20]} 26. Rxc5 {[%emt 0:00:52]} bxc5 {[%emt 0:00:52]} 27. h5 {[%emt 0:01:49]} (27. Bd5) 27... g6 {[%emt 0:09:02]} 28. hxg6 {[%emt 0:00:52]} hxg6 {[%emt 0:00:28]} 29. Qh2 {[%emt 0:00:41]} (29. Qh2 Bxg5 30. Qh8+ Ke7 31. Qxd8+ Kxd8 32. Rxg5) 1-0

[Event "European Senior Team Chess Championship"]
[Site "Chess.com"]
[Date "2023.07.20"]
[Round "9"]
[White "Hammar, Bengt"]
[Black "Hughes, Anthony"]
[Result "1-0"]
[ECO "B12"]
[WhiteElo "2113"]
[BlackElo "1850"]
[PlyCount "57"]
[EventDate "2023.??.??"]
[TimeControl "5400+30"]

1. e4 {[%emt 0:00:14]} c6 {[%emt 0:00:04]} 2. d4 {[%emt 0:00:32]} d5 {[%emt 0:00:06]} 3. e5 {[%emt 0:02:51]} c5 {[%emt 0:00:07]} 4. dxc5 {[%emt 0:00:58]} e6 {[%emt 0:00:12]} 5. Nf3 {[%emt 0:01:47]} Bxc5 {[%emt 0:00:38]} 6. Bd3 {[%emt 0:00:21]} f6 {[%emt 0:04:13]} 7. O-O {[%emt 0:01:32]} Nc6 {[%emt 0:02:00]} 8. Bf4 {[%emt 0:03:53]} fxe5 {[%emt 0:10:21]} 9. Nxe5 {[%emt 0:00:34]} Nf6 {[%emt 0:00:46]} 10. Nd2 {[%emt 0:05:37]} O-O {[%emt 0:16:33]} 11. Ndf3 {[%emt 0:05:16]} Bd7 {[%emt 0:18:48]} 12. c3 {[%emt 0:04:49]} Be8 {[%emt 0:18:41]} 13. Ng5 {[%emt 0:08:45]} Qe7 {[%emt 0:02:02]} 14. Qe2 {[%emt 0:05:05]} Nxe5 {[%emt 0:04:47]} 15. Qxe5 {[%emt 0:03:52]} Bf7 {[%emt 0:01:27]} 16. Rae1 {[%emt 0:02:12]} Ng4 {[%emt 0:06:49]} 17. Qe2 {[%emt 0:03:06]} Nxf2 {[%emt 0:02:33]} 18. Rxf2 {[%emt 0:00:16]} e5 {[%emt 0:02:17]} 19. Be3 {[%emt 0:01:16]} d4 {[%emt 0:02:04]} 20. cxd4 {[%emt 0:00:51]} exd4 {[%emt 0:00:39]} 21. Bd2 {[%emt 0:02:01]} Qd7 {[%emt 0:01:43]} 22. Bxh7+ {[%emt 0:03:53]} Kh8 {[%emt 0:00:07]} 23. Qd3 {[%emt 0:00:09]} Bc4 {[%emt 0:02:32]} 24. Qxc4 {[%emt 0:01:56]} Rxf2 {[%emt 0:00:18]} 25. Kxf2 {[%emt 0:00:23]} Rf8+ {[%emt 0:00:17]} 26. Kg1 {[%emt 0:00:16]} Bd6 {[%emt 0:01:35]} 27. Qd3 {[%emt 0:01:01]} Qg4 {[%emt 0:01:08]} 28. Be4 {[%emt 0:01:30]} Qh4 {[%emt 0:01:10]} 29. Qh3 {[%emt 0:00:08]} 1-0